bitfinex-derivatives/quotes_ETHF0:USTF0_20260123
["timestamp","ask_amount","ask_price","bid_price","bid_amount"]
[1769133988887,0.82925246,2965.7,2964.1,1.46813379]
[1769133989186,0.82925246,2965.6,2964.1,1.46813379]
[1769133989387,1.31202589,2965.8,2964.1,1.46813379]
[1769133989588,0.82930976,2965.7,2964.1,1.46813379]
[1769133989779,0.82930976,2965.6,2964.1,1.46813379]
[1769133989982,1.31202589,2965.8,2964.1,1.46813379]
[1769133990189,0.82930971,2965.7,2964.1,1.46813379]
[1769133990392,0.82930971,2965.6,2964.1,1.46813379]
[1769133990585,1.31202589,2965.8,2964.1,1.46813379]
[1769133990786,0.8292936,2965.7,2964.1,1.46813379]
[1769133990984,0.8292936,2965.6,2964.1,1.46813379]
[1769133991181,1.31202589,2965.8,2964.1,1.46813379]
[1769133991392,0.86702938,2966.0,2964.3,1.46813379]
[1769133991690,0.82936672,2965.9,2964.3,1.46813379]
[1769133991992,0.82936672,2965.8,2964.3,1.46813379]
[1769133992192,1.31202589,2966.2,2964.3,1.46813379]
[1769133992395,0.82935978,2966.1,2964.3,1.46813379]
[1769133992687,1.31202589,2966.2,2964.3,1.46813379]
[1769133992688,0.82935978,2966.0,2964.3,1.46813379]
[1769133992887,0.82935978,2965.9,2964.3,1.46813379]
[1769133993089,1.31202589,2966.2,2964.3,1.46813379]
[1769133993289,0.82943305,2966.1,2964.3,1.46813379]
[1769133993490,6.50305817,2966.3,2964.3,1.46813379]
[1769133993688,0.82937444,2966.2,2964.3,1.46813379]
[1769133993890,0.82937444,2966.1,2964.3,1.46813379]
[1769133994090,6.50305817,2966.3,2964.3,1.46813379]
[1769133994387,0.82940793,2966.2,2964.3,1.46813379]
[1769133994592,0.82940793,2966.1,2964.3,1.46813379]
[1769133994790,6.50305817,2966.3,2964.3,1.46813379]
[1769133994992,0.8749723,2965.6,2964.4,1.02942109]
[1769133999198,0.8749723,2965.4,2964.4,1.02942109]
[1769134001006,0.44032978,2966.2,2964.4,1.02942109]
[1769134001007,0.8749723,2965.6,2964.4,1.02942109]
[1769134002105,0.8749723,2965.6,2964.5,1.02942109]
[1769134008807,0.8749723,2966.2,2964.8,1.02942109]
[1769134009112,0.8749723,2966.2,2964.9,1.02942109]
[1769134010310,0.8749723,2966.0,2964.9,1.02942109]
[1769134010717,0.8749723,2965.8,2964.9,1.02942109]
[1769134011409,0.8749723,2966.0,2964.9,1.02942109]
[1769134020905,0.00505817,2966.3,2964.9,1.02942109]
[1769134021109,0.83174006,2966.2,2964.9,1.02942109]
[1769134021309,0.83174006,2966.1,2964.9,1.02942109]
[1769134021510,0.83174006,2966.0,2964.9,1.02942109]
[1769134021717,0.00505817,2966.3,2964.9,1.02942109]
[1769134021917,0.83180428,2966.2,2964.9,1.02942109]
[1769134022117,0.83180428,2966.1,2964.9,1.02942109]
[1769134022317,0.83180428,2966.0,2964.9,1.02942109]
[1769134022618,0.00505817,2966.3,2964.9,1.02942109]
[1769134022811,0.83184052,2966.2,2964.9,1.02942109]
[1769134023013,0.83184052,2966.1,2964.9,1.02942109]
[1769134023207,0.83184052,2966.0,2964.9,1.02942109]
[1769134023413,0.83194981,2965.9,2964.9,1.02942109]
[1769134023618,0.8747527,2966.1,2964.9,1.02942109]
[1769134023918,0.83195526,2966.0,2964.9,1.02942109]
[1769134024114,0.83195526,2965.9,2964.9,1.02942109]
[1769134024317,0.8747527,2966.1,2964.9,1.02942109]
[1769134024518,0.8319737,2966.0,2964.9,1.02942109]
[1769134024718,0.8319737,2965.9,2964.9,1.02942109]
[1769134024916,0.8747527,2966.1,2964.9,1.02942109]
[1769134025116,0.831974,2966.0,2964.9,1.02942109]
[1769134025319,0.831974,2965.9,2964.9,1.02942109]
[1769134025514,0.8747527,2966.1,2964.9,1.02942109]
[1769134027218,0.83208512,2966.0,2964.9,1.02942109]
[1769134027423,0.8747527,2966.1,2964.6,3.26514991]
[1769134027623,0.83209943,2966.0,2964.6,3.26514991]
[1769134027824,0.8747527,2966.1,2964.6,3.26514991]
[1769134028028,0.83209934,2966.0,2964.6,3.26514991]
[1769134028324,0.8747527,2966.1,2964.7,0.85503213]
[1769134028520,0.83213638,2966.0,2964.7,0.85503213]
[1769134028719,0.8747527,2966.1,2964.7,0.85503213]
[1769134028926,0.8321364,2966.0,2964.7,0.85503213]
[1769134029125,0.8321364,2965.9,2964.7,0.85503213]
[1769134029424,0.8747527,2966.1,2964.7,0.85503213]
[1769134029624,0.83217536,2966.0,2964.7,0.85503213]
[1769134029823,0.83217536,2965.9,2964.7,0.85503213]
[1769134030023,0.8747527,2966.1,2964.7,0.85503213]
[1769134030226,0.83219088,2966.0,2964.7,0.85503213]
[1769134030422,0.83219088,2965.9,2964.7,0.85503213]
[1769134030618,0.8747527,2966.1,2964.7,0.85503213]
[1769134030825,0.8322121,2966.0,2964.7,0.85503213]
[1769134031027,0.8322121,2965.9,2964.7,0.85503213]
[1769134031223,0.8747527,2966.1,2964.7,0.85503213]
[1769134031425,0.83222669,2966.0,2964.7,0.85503213]
[1769134034426,0.83166897,2965.9,2964.7,0.85503213]
[1769134034726,0.8747527,2966.1,2964.7,0.85503213]
[1769134034927,0.83170561,2966.0,2964.7,0.85503213]
[1769134035117,0.8747527,2965.7,2964.7,0.85503213]
[1769134035320,0.8747527,2965.7,2964.3,3.27144523]
[1769134035523,0.8318426,2965.6,2964.3,3.27144523]
[1769134035722,0.8747527,2965.7,2964.3,3.27144523]
[1769134036229,0.83184702,2965.6,2964.3,0.86124161]
[1769134036427,0.83184702,2965.5,2964.3,0.86124161]
[1769134036630,0.83184702,2965.4,2964.3,0.86124161]
[1769134036832,0.8747527,2965.7,2964.3,0.86124161]
[1769134037131,0.83161189,2965.6,2964.3,0.86124161]
[1769134037326,0.83161189,2965.5,2964.3,0.86124161]
[1769134037529,0.83161189,2965.4,2964.3,0.86124161]
[1769134037730,0.8747527,2965.7,2964.3,0.86124161]
[1769134038026,0.83132067,2965.6,2964.3,0.86124161]
[1769134038227,0.83132067,2965.5,2964.3,0.86124161]
[1769134038427,0.8747527,2965.7,2964.3,0.86124161]
[1769134038628,0.83107032,2965.6,2964.3,0.86124161]
[1769134038828,0.83107032,2965.5,2964.3,0.86124161]
[1769134039127,0.8747527,2965.7,2964.3,0.86124161]
[1769134039328,0.83087093,2965.6,2964.3,0.86124161]
[1769134039532,0.83087093,2965.5,2964.3,0.86124161]
[1769134039729,0.8747527,2965.7,2964.3,0.86124161]
[1769134040027,0.83088235,2965.6,2964.3,0.86124161]
[1769134040227,0.83088235,2965.5,2964.3,0.86124161]
[1769134040427,0.8747527,2965.7,2964.3,0.86124161]
[1769134040627,0.83070808,2965.6,2964.3,0.86124161]
[1769134040834,0.8747527,2965.3,2964.3,0.86124161]
[1769134042122,0.8747527,2965.3,2963.9,0.86436476]
[1769134042521,0.83046993,2965.2,2963.9,0.86436476]
[1769134042725,0.8747527,2965.1,2963.9,0.86436476]
[1769134043326,0.00505817,2964.8,2963.9,0.86436476]
[1769134060040,0.8747527,2965.9,2963.9,0.86436476]
[1769134060238,0.83062765,2965.8,2963.9,0.86436476]
[1769134060443,0.83062765,2965.7,2963.9,0.86436476]
[1769134060737,0.83062765,2965.6,2963.9,0.86436476]
[1769134061040,0.8747527,2966.4,2964.5,0.87175]
[1769134061245,0.83051927,2966.3,2964.5,0.87680817]
[1769134061444,0.83051927,2966.2,2964.5,0.87680817]
[1769134061740,0.83051927,2966.1,2964.5,0.87680817]
[1769134061932,0.83051927,2966.0,2964.5,0.87680817]
[1769134062135,0.8747527,2966.4,2964.5,0.87680817]
[1769134062338,0.83039685,2966.3,2964.5,0.87680817]
[1769134062537,0.83039685,2966.2,2964.5,0.87680817]
[1769134062736,0.83039685,2966.1,2964.5,0.87680817]
[1769134062941,0.83039685,2966.0,2964.5,0.87680817]
[1769134063143,0.8747527,2966.4,2964.5,0.87680817]
[1769134063346,0.83190571,2966.3,2964.5,0.87680817]
[1769134063549,0.83190571,2966.2,2964.7,0.86872211]
[1769134063745,0.8785361,2966.8,2964.8,1.74347481]
[1769134064046,0.8318314,2966.7,2964.9,0.86872211]
[1769134064239,0.8318314,2966.6,2964.9,0.86872211]
[1769134064438,0.8318314,2966.5,2964.9,0.86872211]
[1769134064641,0.8318314,2966.4,2964.9,0.86872211]
[1769134064843,0.8785361,2966.8,2964.9,0.86872211]
[1769134065145,0.83152586,2966.7,2964.9,0.86872211]
[1769134065345,0.83152586,2966.6,2964.9,0.86872211]
[1769134065544,0.83152586,2966.5,2964.9,0.86872211]
[1769134065738,0.8785361,2966.8,2964.9,0.86872211]
[1769134065939,0.83124328,2966.7,2964.9,0.86872211]
[1769134066140,0.83124328,2966.6,2964.9,0.86872211]
[1769134066447,0.8785361,2966.8,2964.9,0.86872211]
[1769134066645,0.83087749,2966.7,2964.9,0.86872211]
[1769134066845,0.83087749,2966.6,2964.9,0.86872211]
[1769134067047,0.83087749,2966.5,2964.9,0.86872211]
[1769134067246,0.8785361,2966.8,2964.9,0.86872211]
[1769134067444,0.830635,2966.7,2964.9,0.86872211]
[1769134067746,0.830635,2966.6,2964.9,0.86872211]
[1769134067951,0.8785361,2966.8,2964.9,0.86872211]
[1769134068148,0.83062313,2966.7,2964.9,0.86872211]
[1769134068345,0.83062313,2966.6,2964.9,0.86872211]
[1769134068648,0.8785361,2966.8,2964.9,0.86872211]
[1769134068840,0.83036175,2966.7,2964.9,0.86872211]
[1769134069039,0.8785361,2966.8,2964.9,0.86872211]
[1769134069040,0.83036175,2966.6,2964.9,0.86872211]
[1769134069249,0.8785361,2966.8,2964.9,0.86872211]
[1769134069449,0.83013435,2966.7,2964.9,0.86872211]
[1769134069640,0.8785361,2966.8,2964.9,0.86872211]
[1769134069641,0.83013435,2966.6,2964.9,0.86872211]
[1769134069950,0.8785361,2966.8,2964.9,0.86872211]
[1769134069951,0.8747527,2966.4,2964.9,0.86872211]
[1769134079556,0.83028863,2966.3,2964.9,0.86872211]
[1769134079756,0.8747527,2966.4,2964.9,0.86872211]
[1769134079955,0.83028893,2966.3,2964.9,0.86872211]
[1769134080252,0.8747527,2966.4,2964.9,0.86872211]
[1769134080454,0.83036018,2966.3,2964.9,0.86872211]
[1769134080759,0.8747527,2966.4,2964.9,0.86872211]
[1769134081053,0.8747527,2966.0,2964.9,0.86872211]
[1769134081554,0.8747527,2966.4,2964.9,0.86872211]
[1769134081859,0.1687,2966.7,2964.9,0.86872211]
[1769134082159,0.8305152,2966.6,2964.9,0.86872211]
[1769134082356,0.8305152,2966.5,2964.9,0.86872211]
[1769134082556,0.1687,2966.7,2964.9,0.86872211]
[1769134082759,0.83065337,2966.6,2964.9,0.86872211]
[1769134083057,0.87465888,2966.2,2965.0,0.86719145]
[1769134084358,0.87465888,2966.0,2965.0,0.86719145]
[1769134088655,0.87465888,2965.8,2965.0,0.86719145]
[1769134094768,0.87465888,2965.6,2965.0,0.86719145]
[1769134094963,0.87465888,2965.6,2964.6,0.87165152]
[1769134095164,0.87465888,2966.0,2964.8,0.87165152]
[1769134095463,0.83542957,2965.9,2964.8,0.87165152]
[1769134095767,0.87465888,2966.0,2964.8,0.87165152]
[1769134096865,0.87465888,2966.0,2964.9,0.87359755]
[1769134104273,0.87465888,2965.8,2964.9,0.87359755]
[1769134105873,0.83576877,2965.7,2964.9,0.87359755]
[1769134106068,0.87465888,2965.8,2964.9,0.87359755]
[1769134106268,0.83575588,2965.7,2964.9,0.87359755]
[1769134106571,0.87465888,2965.8,2964.9,0.87359755]
[1769134106773,0.83572936,2965.7,2964.9,0.87359755]
[1769134107070,0.87465888,2965.8,2964.9,0.87359755]
[1769134107272,0.83571695,2965.7,2964.9,0.87359755]
[1769134107575,0.87465888,2965.8,2964.9,0.87359755]
[1769134107773,0.83572926,2965.7,2964.9,0.87359755]
[1769134107974,0.87465888,2965.8,2964.9,0.87359755]
[1769134108175,0.8357319,2965.7,2964.9,0.87359755]
[1769134108376,0.83573142,2965.6,2964.9,0.87359755]
[1769134108681,0.87465888,2965.6,2964.9,0.87359755]
[1769134108869,0.83574485,2965.5,2964.9,0.87359755]
[1769134109069,0.87465888,2965.6,2964.9,0.87359755]
[1769134109376,0.83576592,2965.5,2964.9,0.87359755]
[1769134109579,0.87465888,2965.6,2964.9,0.87359755]
[1769134109788,0.83570707,2965.5,2964.9,0.87359755]
[1769134110078,0.87465888,2965.6,2964.9,0.87359755]
[1769134110274,0.83570703,2965.5,2964.9,0.87359755]
[1769134110580,0.87465888,2965.8,2964.9,0.87359755]
[1769134110781,0.83564433,2965.7,2964.9,0.87359755]
[1769134110979,0.83564433,2965.6,2964.9,0.87359755]
[1769134111281,0.83564433,2965.5,2964.9,0.87359755]
[1769134111576,0.87465888,2965.8,2964.9,0.87359755]
[1769134111778,0.8356304,2965.7,2964.9,0.87359755]
[1769134111976,0.8356304,2965.6,2964.9,0.87359755]
[1769134112175,0.8356304,2965.5,2964.9,0.87359755]
[1769134112481,0.87465888,2965.6,2964.9,0.87359755]
[1769134112678,0.83559222,2965.5,2964.9,0.87359755]
[1769134112878,0.87465888,2965.6,2964.9,0.87359755]
[1769134113182,0.83559221,2965.5,2964.9,0.87359755]
[1769134113381,0.87465888,2965.6,2964.9,0.87359755]
[1769134113681,0.83559707,2965.5,2964.9,0.87359755]
[1769134113882,0.87465888,2965.6,2964.9,0.87359755]
[1769134114078,0.83560786,2965.5,2964.9,0.87359755]
[1769134114275,0.87465888,2965.6,2964.9,0.87359755]
[1769134114577,0.83561588,2965.5,2964.9,0.87359755]
[1769134114777,0.87465888,2965.6,2964.9,0.87359755]
[1769134114977,0.83561596,2965.5,2964.9,0.87359755]
[1769134115177,0.87465888,2965.6,2964.9,0.87359755]
[1769134115378,0.83563573,2965.5,2964.9,0.87359755]
[1769134115581,0.87465888,2965.6,2964.9,0.87359755]
[1769134115981,0.87465888,2965.0,2964.5,3.29544293]
[1769134116183,0.87465888,2965.0,2964.5,0.88523931]
[1769134117285,0.87465888,2965.6,2964.5,0.88523931]
[1769134117480,0.8369307,2965.5,2964.5,0.88523931]
[1769134117681,0.87465888,2965.6,2964.5,0.88523931]
[1769134117880,0.87465888,2965.4,2964.5,0.88523931]
[1769134118385,0.87465888,2965.2,2964.5,0.88523931]
[1769134119888,0.87465888,2965.0,2964.5,0.88523931]
[1769134122797,0.87465888,2965.0,2964.1,0.88188999]
[1769134122798,0.87465888,2964.6,2964.1,0.88188999]
[1769134123099,0.87833512,2964.6,2964.1,0.88188999]
[1769134123298,0.00367624,2964.6,2964.1,0.88188999]
[1769134124100,0.00505817,2965.0,2964.2,0.88021069]
[1769134125105,0.00924149,2965.0,2964.2,0.88021069]
[1769134125792,0.88390037,2965.0,2964.2,0.88021069]
[1769134128305,0.87465888,2964.8,2964.2,0.88021069]
[1769134130198,0.00924149,2965.0,2964.2,0.88021069]
[1769134133505,0.88390037,2965.0,2964.2,0.88021069]
[1769134135804,0.00924149,2965.0,2964.2,0.88021069]
[1769134136905,0.87465888,2965.6,2964.5,0.88354383]
[1769134137705,0.87881651,2965.6,2964.5,0.88354383]
[1769134137903,0.87881651,2965.6,2964.8,0.00505817]
[1769134138103,0.87881651,2965.6,2964.9,0.87904953]
[1769134141708,0.87465888,2965.4,2964.9,0.87904953]
[1769134143001,0.87465888,2965.4,2964.8,0.00505817]
[1769134143002,0.87514729,2965.4,2964.1,2.41020362]
[1769134143197,0.83754142,2965.3,2963.8,2.41281916]
[1769134143416,0.83777425,2965.2,2963.8,0.00261554]
[1769134143608,0.83777425,2965.1,2963.8,0.00261554]
[1769134143808,0.88020546,2965.4,2963.8,0.00261554]
[1769134144011,0.83777705,2965.3,2963.8,0.00261554]
[1769134144212,0.83777705,2965.2,2963.8,0.00261554]
[1769134144400,0.83777705,2965.1,2963.8,0.00261554]
[1769134144602,0.83798536,2965.0,2963.8,0.00261554]
[1769134144920,0.88020546,2965.4,2963.8,0.00261554]
[1769134145108,0.8379828,2965.3,2963.9,0.43711686]
[1769134145411,0.8379828,2965.2,2963.9,0.43711686]
[1769134145607,0.88020546,2965.4,2963.9,0.43711686]
[1769134145608,0.8379828,2965.1,2963.9,0.43711686]
[1769134145804,0.8379828,2965.0,2963.9,0.43711686]
[1769134146014,0.8379828,2964.9,2963.9,0.43711686]
[1769134146205,0.88020546,2965.4,2963.9,0.43711686]
[1769134146513,0.83809148,2965.3,2963.9,0.43711686]
[1769134146710,0.83809148,2965.2,2963.9,0.43711686]
[1769134146912,0.83809148,2965.1,2963.9,0.43711686]
[1769134147108,0.83809148,2965.0,2963.9,0.43711686]
[1769134147417,0.83809148,2964.9,2963.9,0.43711686]
[1769134147606,0.88020546,2965.4,2963.9,0.43711686]
[1769134147805,0.83801481,2965.3,2963.9,0.43711686]
[1769134148005,0.83801481,2965.2,2963.9,0.43711686]
[1769134148207,0.83801481,2965.1,2963.9,0.43711686]
[1769134148414,0.83801481,2965.0,2963.9,0.43711686]
[1769134148614,0.83801481,2964.9,2963.9,0.43711686]
[1769134148814,0.88020546,2965.4,2963.9,0.43711686]
[1769134149016,0.83797132,2965.3,2963.9,0.43711686]
[1769134149207,0.83797132,2965.2,2963.9,0.43711686]
[1769134149515,0.87514729,2965.0,2963.9,0.43711686]
[1769134149726,0.83797132,2964.9,2963.9,0.43711686]
[1769134149910,0.87514729,2965.0,2963.9,0.43711686]
[1769134150214,0.83794074,2964.9,2963.9,0.43711686]
[1769134150515,0.87514729,2965.0,2963.9,0.43711686]
[1769134150715,0.83788232,2964.9,2963.9,0.43711686]
[1769134151016,0.87514729,2965.0,2963.9,0.43711686]
[1769134151216,0.83788251,2964.9,2963.9,0.43711686]
[1769134151513,0.87514729,2965.0,2963.9,0.43711686]
[1769134151714,0.83784366,2964.9,2963.9,0.43711686]
[1769134161927,0.00505817,2965.4,2963.9,0.43711686]
[1769134162125,0.83690185,2965.3,2963.9,0.43711686]
[1769134162325,0.83690185,2965.2,2963.9,0.43711686]
[1769134162628,0.83690185,2965.1,2963.9,0.43711686]
[1769134162926,0.83690185,2965.0,2963.9,0.43711686]
[1769134163124,0.00505817,2965.4,2963.9,0.43711686]
[1769134163324,0.83691012,2965.3,2963.9,0.43711686]
[1769134163526,0.83691012,2965.2,2963.9,0.43711686]
[1769134163822,0.83691012,2965.1,2963.9,0.43711686]
[1769134164028,0.83691012,2965.0,2963.9,0.43711686]
[1769134164344,0.00505817,2965.4,2963.9,0.43711686]
[1769134164527,0.83692371,2965.3,2963.9,0.43711686]
[1769134164727,0.83692371,2965.2,2963.9,0.43711686]
[1769134164931,0.83692371,2965.1,2963.9,0.43711686]
[1769134165228,0.83692371,2965.0,2963.9,0.43711686]
[1769134165431,0.00505817,2965.4,2963.9,0.43711686]
[1769134165626,0.83693758,2965.3,2963.9,0.43711686]
[1769134165930,0.83693758,2965.2,2963.9,0.43711686]
[1769134166127,0.83693758,2965.1,2963.9,0.43711686]
[1769134166326,0.00505817,2965.4,2963.9,0.43711686]
[1769134166529,0.83697316,2965.3,2963.9,0.43711686]
[1769134166731,0.83697316,2965.2,2963.9,0.43711686]
[1769134166930,0.83697316,2965.1,2963.9,0.43711686]
[1769134167132,0.00505817,2965.4,2963.9,0.43711686]
[1769134167353,0.83714736,2965.3,2963.9,0.43711686]
[1769134167532,0.83714736,2965.2,2963.9,0.43711686]
[1769134167832,0.83714736,2965.1,2963.9,0.43711686]
[1769134168034,0.00505817,2965.4,2963.9,0.43711686]
[1769134168236,0.83714729,2965.3,2963.9,0.43711686]
[1769134168434,0.83714729,2965.2,2963.9,0.43711686]
[1769134168634,0.83714729,2965.1,2963.9,0.43711686]
[1769134168935,0.00505817,2965.4,2963.9,0.43711686]
[1769134169242,0.83736498,2965.3,2963.9,0.43711686]
[1769134169446,0.83736498,2965.2,2963.9,0.43711686]
[1769134169732,0.83763069,2965.1,2963.9,0.43711686]
[1769134169933,0.83763069,2965.0,2963.9,0.43711686]
[1769134170132,0.00505817,2965.4,2963.9,0.43711686]
[1769134170332,0.83765948,2965.3,2963.9,0.43711686]
[1769134170537,0.83765948,2965.2,2963.9,0.43711686]
[1769134170733,0.00505817,2965.4,2964.0,0.44199188]
[1769134171035,0.83758544,2965.3,2964.0,0.44199188]
[1769134171335,0.00505817,2965.4,2964.0,2.8521955]
[1769134171534,0.83782612,2965.3,2964.1,0.44208093]
[1769134171735,0.00505817,2965.4,2964.1,0.44208093]
[1769134172036,0.83782655,2965.3,2964.1,0.44208093]
[1769134172232,0.00505817,2965.4,2964.2,0.44216218]
[1769134172438,0.00505817,2965.4,2964.4,0.44112229]
[1769134173239,0.00415763,2965.6,2964.5,2.84879682]
[1769134173538,0.00415763,2965.6,2964.7,0.4385932]
[1769134173734,6.498,2966.3,2964.7,0.4385932]
[1769134173934,0.8373943,2966.2,2964.7,0.4385932]
[1769134174133,0.8373943,2966.1,2964.7,0.4385932]
[1769134174337,7.37314729,2966.4,2964.7,0.4385932]
[1769134174536,0.83678151,2966.3,2964.7,0.4385932]
[1769134174731,0.83678151,2966.2,2964.7,0.4385932]
[1769134178543,0.87514729,2966.0,2964.7,0.4385932]
[1769134179039,0.00427182,2966.3,2964.7,0.4385932]
[1769134179242,0.83542077,2966.2,2964.7,0.4385932]
[1769134179442,0.83542077,2966.1,2964.7,0.4385932]
[1769134179646,0.00427182,2966.3,2964.7,0.4385932]
[1769134179845,0.83520904,2966.2,2964.7,0.4385932]
[1769134180143,0.87514729,2966.0,2964.7,0.4385932]
[1769134183648,0.87514729,2966.0,2965.1,0.00505817]
[1769134195758,0.83399617,2965.9,2965.1,0.00505817]
[1769134195958,0.83399617,2965.8,2965.1,0.00505817]
[1769134196158,0.87514729,2966.0,2965.1,0.00505817]
[1769134196457,0.83420694,2965.9,2965.1,0.00505817]
[1769134196657,0.83420694,2965.8,2965.1,0.00505817]
[1769134196859,0.87514729,2966.0,2965.1,0.00505817]
[1769134197158,0.83420682,2965.9,2965.1,0.00505817]
[1769134197455,0.83420682,2965.8,2965.1,0.00505817]
[1769134197656,0.87514729,2966.0,2965.1,0.00505817]
[1769134197858,0.83445952,2965.9,2965.1,0.00505817]
[1769134198157,0.83445952,2965.8,2965.1,0.00505817]
[1769134198354,0.83445952,2965.7,2965.1,0.00505817]
[1769134198563,0.87514729,2966.0,2965.1,0.00505817]
[1769134198758,0.83476825,2965.9,2965.1,0.00505817]
[1769134199060,0.83476825,2965.8,2965.1,0.00505817]
[1769134199260,0.83476825,2965.7,2965.1,0.00505817]
[1769134199557,0.87514729,2966.0,2965.1,0.00505817]
[1769134199861,0.8351613,2965.9,2965.1,0.00505817]
[1769134200054,0.8351613,2965.8,2965.1,0.00505817]
[1769134200253,0.8351613,2965.7,2965.1,0.00505817]
[1769134200448,0.8351613,2965.6,2965.1,0.00505817]
[1769134200659,0.87514729,2966.0,2965.1,0.00505817]
[1769134200859,0.83568239,2965.9,2965.1,0.00505817]
[1769134201056,0.83568239,2965.8,2965.1,0.44081635]
[1769134201262,0.00427182,2966.3,2965.1,0.44081635]
[1769134201457,0.83596342,2966.2,2965.1,0.44081635]
[1769134201658,0.83596342,2966.1,2965.1,0.44081635]
[1769134201857,0.83596342,2966.0,2965.1,0.44081635]
[1769134202162,0.83596342,2965.9,2965.1,0.44081635]
[1769134202361,0.83596342,2965.8,2965.1,0.44081635]
[1769134202564,0.00427182,2966.3,2965.1,0.44081635]
[1769134202861,2.42189039,2967.4,2965.5,0.43386633]
[1769134203160,4.13309238,2967.3,2965.5,0.43386633]
[1769134203355,0.8360547,2967.2,2965.5,0.43386633]
[1769134203660,0.00505817,2966.7,2965.5,0.43386633]
[1769134203853,0.00909784,2966.7,2965.5,0.43386633]
[1769134204860,0.88351251,2966.7,2965.5,0.43386633]
[1769134207658,0.00909784,2966.7,2965.6,0.43502034]
[1769134207858,0.00909784,2966.7,2965.2,2.41020362]
[1769134207859,0.00909784,2966.7,2965.8,0.43502034]
[1769134209265,0.00909784,2966.7,2966.0,0.43508774]
[1769134209465,0.00909784,2966.7,2966.0,0.43923838]
[1769134211969,6.498,2967.6,2966.6,0.43089507]
[1769134212270,0.87441467,2967.9,2966.7,0.87441467]
[1769134212469,0.83190056,2967.8,2967.0,0.43095887]
[1769134212666,0.87441467,2968.1,2967.0,0.43095887]
[1769134212866,0.83187918,2968.0,2967.0,0.43095887]
[1769134213066,0.83187918,2967.9,2967.0,0.43095887]
[1769134213267,0.87746495,2968.1,2966.0,0.17289064]
[1769134213268,0.87441467,2967.7,2967.3,0.00505817]
[1769134213573,0.87441467,2967.7,2966.6,0.43095887]
[1769134214973,0.87441467,2967.7,2966.9,0.00505817]
[1769134216574,0.87441467,2967.3,2966.9,0.00505817]
[1769134217673,0.87441467,2967.5,2966.9,0.00505817]
[1769134217873,0.87441467,2967.7,2966.9,0.00505817]
[1769134219477,0.87441467,2967.5,2966.9,0.00505817]
[1769134219672,0.87441467,2967.1,2966.0,0.00415064]
[1769134219980,0.87441467,2967.0,2966.0,0.00415064]
[1769134220779,0.87441467,2967.4,2966.0,0.43332391]
[1769134224878,0.89022628,2967.5,2966.0,0.43332391]
[1769134226581,0.77894292,2967.5,2966.0,0.43332391]
[1769134227086,0.00505817,2967.6,2966.3,0.42943398]
[1769134227985,0.00505817,2967.6,2966.6,0.42942379]
[1769134230387,0.00505817,2967.6,2966.9,0.42979351]
[1769134230687,0.7819932,2968.1,2966.9,0.42979351]
[1769134231488,0.00305028,2968.1,2966.9,0.42979351]
[1769134231788,0.00305028,2968.1,2967.2,0.43480983]
[1769134234486,0.00305028,2968.1,2967.5,0.42975031]
[1769134234692,0.77894292,2969.1,2967.5,0.42975031]
[1769134234892,0.83161343,2969.0,2967.5,0.42975031]
[1769134235190,0.83161343,2968.9,2967.5,0.42975031]
[1769134235390,0.77894292,2969.1,2967.5,0.42975031]
[1769134235582,0.83121095,2969.0,2967.5,0.42975031]
[1769134235778,0.83121091,2968.9,2967.5,0.42975031]
[1769134235987,0.83121091,2968.8,2967.5,0.42975031]
[1769134236186,0.78198872,2969.1,2967.5,0.42975031]
[1769134236489,0.83121252,2969.0,2967.5,0.42975031]
[1769134236689,0.83121252,2968.9,2967.5,0.42975031]
[1769134236881,0.78198872,2969.1,2967.5,0.42975031]
[1769134237078,0.83096102,2969.0,2967.5,0.42975031]
[1769134237379,0.83096102,2968.9,2967.5,0.42975031]
[1769134237689,0.78198872,2969.1,2967.5,0.42975031]
[1769134237892,0.83079501,2969.0,2967.5,0.42975031]
[1769134238092,0.78198872,2969.1,2967.5,0.42975031]
[1769134238390,0.83079499,2969.0,2967.5,0.42975031]
[1769134238589,0.83079499,2968.9,2967.5,0.42975031]
[1769134238782,0.78198872,2969.1,2967.5,0.42975031]
[1769134238984,0.83066597,2969.0,2967.5,0.42975031]
[1769134239280,0.83066597,2968.9,2967.5,0.42975031]
[1769134239478,0.78198872,2969.1,2967.5,0.42975031]
[1769134239683,0.83051844,2969.0,2967.5,0.42975031]
[1769134239991,0.83051844,2968.9,2967.5,0.42975031]
[1769134240193,0.78198872,2969.1,2967.5,0.42975031]
[1769134240395,0.83051844,2969.0,2967.5,0.42975031]
[1769134240587,0.83051844,2968.9,2967.5,0.42975031]
[1769134240788,0.78198872,2969.1,2967.5,0.42975031]
[1769134240987,0.8304195,2969.0,2967.5,0.42975031]
[1769134241189,0.8304195,2968.9,2967.5,0.42975031]
[1769134241388,0.78198872,2969.1,2967.5,0.42975031]
[1769134241595,0.83035953,2969.0,2967.5,0.42975031]
[1769134241907,0.83035953,2968.9,2967.5,0.42975031]
[1769134242093,0.78198872,2969.1,2967.5,0.42975031]
[1769134242396,0.83035954,2969.0,2967.5,0.42975031]
[1769134242596,0.83035954,2968.9,2967.5,0.42975031]
[1769134242897,0.78198872,2969.1,2967.5,0.42975031]
[1769134243095,0.83023858,2969.0,2967.5,0.42975031]
[1769134243394,0.83023858,2968.9,2967.5,0.42975031]
[1769134243592,0.78198872,2969.1,2967.5,0.42975031]
[1769134243796,0.83024292,2969.0,2967.5,0.42975031]
[1769134243995,0.83024292,2968.9,2967.5,0.42975031]
[1769134244195,0.78198872,2969.1,2967.5,0.42975031]
[1769134244395,0.83024301,2969.0,2967.5,0.42975031]
[1769134244599,0.83024301,2968.9,2967.5,0.42975031]
[1769134244800,0.78198872,2969.1,2967.5,0.42975031]
[1769134244991,0.83012058,2969.0,2967.5,0.42975031]
[1769134245192,0.83012058,2968.9,2967.5,0.42975031]
[1769134245393,0.78198872,2969.1,2967.5,0.42975031]
[1769134245695,0.83001721,2969.0,2967.5,0.42975031]
[1769134245891,0.83001721,2968.9,2967.5,0.42975031]
[1769134246096,0.83001721,2968.8,2967.5,0.42975031]
[1769134246298,0.83001721,2968.7,2967.5,0.42975031]
[1769134246498,0.83001721,2968.6,2967.5,0.42975031]
[1769134246802,0.78198872,2969.1,2967.5,0.42975031]
[1769134247000,0.82991353,2969.0,2967.5,0.42975031]
[1769134247200,0.82991353,2968.9,2967.5,0.42975031]
[1769134247500,0.82991353,2968.8,2967.5,0.42975031]
[1769134247801,0.78198872,2969.1,2967.5,0.42975031]
[1769134247802,0.82991353,2968.7,2967.5,0.42975031]
[1769134248001,0.82991353,2968.6,2967.5,0.42975031]
[1769134248196,0.78198872,2969.1,2967.5,0.42975031]
[1769134248498,0.82985476,2969.0,2967.5,0.42975031]
[1769134248698,0.82985476,2968.9,2967.5,0.42975031]
[1769134248900,0.82985476,2968.8,2967.5,0.42975031]
[1769134249200,0.82985476,2968.7,2967.5,0.42975031]
[1769134249398,0.82985476,2968.6,2967.5,0.42975031]
[1769134249594,0.78198872,2969.1,2967.5,0.42975031]
[1769134249901,0.82975384,2969.0,2967.5,0.42975031]
[1769134250095,0.82975384,2968.9,2967.5,0.42975031]
[1769134250295,0.82975384,2968.8,2967.5,0.42975031]
[1769134250501,0.82975384,2968.7,2967.5,0.42975031]